bitfinex-derivatives/quotes_BTCF0:USTF0_20241010
["timestamp","ask_amount","ask_price","bid_price","bid_amount"]
[1728540685866,0.70668184,61031.0,61030.0,0.084021]
[1728540690770,0.62466284,61031.0,61030.0,0.084021]
[1728540693964,0.70668184,61031.0,61030.0,0.084021]
[1728540695564,0.70668184,61031.0,61030.0,0.13300361]
[1728540696172,0.34588184,61031.0,61030.0,0.13300361]
[1728540696374,0.70668184,61031.0,61030.0,0.084021]
[1728540697570,0.56668184,61031.0,61030.0,0.084021]
[1728540697877,0.70668184,61031.0,61030.0,0.084021]
[1728540698378,0.56668184,61031.0,61030.0,0.14913639]
[1728540698578,0.70668184,61031.0,61030.0,0.14913639]
[1728540699176,0.62466284,61031.0,61030.0,0.14913639]
[1728540699379,0.48466284,61031.0,61030.0,0.224021]
[1728540699781,0.48466284,61031.0,61030.0,0.30541524]
[1728540700380,0.48466284,61031.0,61030.0,0.224021]
[1728540707489,0.56668184,61031.0,61030.0,0.084021]
[1728540708596,0.48466284,61031.0,61030.0,0.084021]
[1728540708803,0.48466284,61031.0,61030.0,0.224021]
[1728540717411,0.48466284,61031.0,61030.0,0.30541524]
[1728540718006,0.48466284,61031.0,61030.0,0.224021]
[1728540719803,0.12386284,61031.0,61030.0,0.224021]
[1728540721505,0.12386284,61031.0,61030.0,0.084021]
[1728540721720,0.26386284,61031.0,61030.0,0.084021]
[1728540722214,0.12386284,61031.0,61030.0,0.084021]
[1728540727314,0.12386284,61031.0,61030.0,0.13303992]
[1728540728715,0.12386284,61031.0,61030.0,0.084021]
[1728540729218,0.12386284,61031.0,61030.0,0.13303992]
[1728540730517,0.12386284,61031.0,61030.0,0.084021]
[1728540732019,0.12386284,61031.0,61030.0,0.13303992]
[1728540732412,0.12386284,61031.0,61030.0,0.16541524]
[1728540737219,0.12386284,61031.0,61030.0,0.25300007]
[1728540739217,0.12386284,61031.0,61030.0,0.16541524]
[1728540740623,0.23608184,61031.0,61030.0,0.084021]
[1728540741923,0.15406284,61031.0,61030.0,0.084021]
[1728540749127,0.23608184,61031.0,61030.0,0.05102084]
[1728540749317,0.23608184,61031.0,61030.0,0.002]
[1728540750124,0.59688184,61031.0,61030.0,0.002]
[1728540750531,0.59688184,61031.0,61030.0,0.084021]
[1728540759531,0.59688184,61031.0,61030.0,0.13302524]
[1728540761435,0.59688184,61031.0,61030.0,0.084021]
[1728540763046,0.48466284,61031.0,61030.0,0.084021]
[1728540764235,0.48466284,61031.0,61030.0,0.404021]
[1728540768048,0.48466284,61031.0,61030.0,0.45302524]
[1728540768250,0.48466284,61031.0,61030.0,0.13302524]
[1728540769444,0.48466284,61031.0,61030.0,0.084021]
[1728540769643,0.12386284,61031.0,61030.0,0.084021]
[1728540781458,0.12386284,61031.0,61030.0,0.13300425]
[1728540781854,0.1,61031.0,61030.0,0.13300425]
[1728540782153,0.3608,61032.0,61031.0,0.082019]
[1728540782663,0.3608,61032.0,61031.0,0.113519]
[1728540783354,0.3608,61032.0,61031.0,0.114519]
[1728540784362,0.3608,61032.0,61031.0,0.115519]
[1728540786164,0.3608,61032.0,61031.0,0.255519]
[1728540786466,0.4254,61039.0,61038.0,0.08201]
[1728540786664,0.5354,61039.0,61038.0,0.22201]
[1728540787170,0.55957523,61039.0,61038.0,0.22201]
[1728540787858,0.55957523,61039.0,61038.0,0.22301]
[1728540789063,0.55957523,61039.0,61038.0,0.22401]
[1728540789669,0.55957523,61039.0,61038.0,0.28929416]
[1728540790054,0.55957523,61039.0,61038.0,0.22401]
[1728540797064,0.1438,61048.0,61038.0,0.22401]
[1728540797065,0.0038,61048.0,61043.0,0.082005]
[1728540797269,0.392,61049.0,61043.0,0.28725731]
[1728540797967,0.02566406,61044.0,61043.0,0.28725731]
[1728540798165,0.00245803,61044.0,61043.0,0.28925731]
[1728540799062,0.00245803,61044.0,61043.0,0.28825731]
[1728540799468,0.00245803,61044.0,61043.0,0.223005]
[1728540799664,0.00245803,61044.0,61043.0,0.222005]
[1728540800267,0.12245803,61044.0,61043.0,0.222005]
[1728540802371,0.0263689,61044.0,61043.0,0.222005]
[1728540804681,0.0263689,61044.0,61043.0,0.082005]
[1728540804682,0.6371689,61044.0,61043.0,0.082005]
[1728540805479,0.7191709,61044.0,61043.0,0.082005]
[1728540811876,0.6371689,61044.0,61041.0,0.06525231]
[1728540812185,0.082006,61041.0,61040.0,0.13094068]
[1728540812478,0.332006,61041.0,61040.0,0.082006]
[1728540812782,0.394606,61041.0,61040.0,0.082006]
[1728540813478,0.254606,61041.0,61040.0,0.082006]
[1728540813681,0.3126,61041.0,61040.0,0.082006]
[1728540814979,0.3121,61041.0,61040.0,0.082006]
[1728540818473,0.1721,61041.0,61040.0,0.082006]
[1728540821683,0.1721,61041.0,61040.0,0.13094138]
[1728540821684,0.3121,61041.0,61040.0,0.13094138]
[1728540821880,0.3121,61041.0,61040.0,0.082006]
[1728540822383,0.3121,61041.0,61040.0,0.13095945]
[1728540822779,0.3121,61041.0,61040.0,0.082006]
[1728540822980,0.3121,61041.0,61040.0,0.13095945]
[1728540824979,0.6729,61041.0,61040.0,0.13095945]
[1728540829495,0.6729,61041.0,61040.0,0.13079945]
[1728540830486,0.6729,61041.0,61040.0,0.13080424]
[1728540830688,0.5329,61041.0,61040.0,0.081846]
[1728540830988,0.5329,61041.0,61040.0,0.13080424]
[1728540833394,0.5329,61041.0,61040.0,0.081846]
[1728540833894,0.5028,61041.0,61040.0,0.081846]
[1728540835185,0.6428,61041.0,61040.0,0.081846]
[1728540837589,0.6448,61041.0,61040.0,0.081846]
[1728540837795,0.6478,61041.0,61040.0,0.081846]
[1728540838595,0.729807,61041.0,61040.0,0.081846]
[1728540839302,0.728807,61041.0,61040.0,0.081846]
[1728540839887,0.726807,61041.0,61040.0,0.081846]
[1728540840096,0.729807,61041.0,61040.0,0.081846]
[1728540841295,0.729807,61041.0,61040.0,0.13083569]
[1728540842897,0.729807,61041.0,61036.0,0.082013]
[1728540842898,0.082012,61037.0,61036.0,0.082013]
[1728540843088,0.692312,61037.0,61036.0,0.082013]
[1728540843491,0.75578922,61037.0,61036.0,0.082013]
[1728540843699,0.67377722,61037.0,61031.0,0.0114]
[1728540843891,0.5008,61032.0,61031.0,0.0114]
[1728540844200,0.082022,61030.0,61028.0,0.082024]
[1728540844394,0.14,61029.0,61028.0,0.082024]
[1728540844595,0.26,61029.0,61028.0,0.082024]
[1728540848693,0.26,61029.0,61028.0,0.14731631]
[1728540849697,0.6208,61029.0,61028.0,0.14731631]
[1728540850398,0.6208,61029.0,61028.0,0.082024]
[1728540851702,0.70283,61029.0,61028.0,0.082024]
[1728540851893,0.6825,61029.0,61028.0,0.082024]
[1728540852893,0.6825,61029.0,61023.0,0.0114]
[1728540852894,0.082034,61026.0,61024.0,0.082036]
[1728540853098,0.082034,61026.0,61020.0,0.093442]
[1728540853099,0.5008,61025.0,61020.0,0.093442]
[1728540853403,0.5008,61025.0,61018.0,0.0038]
[1728540853404,0.082043,61020.0,61017.0,0.093446]
[1728540853591,0.5008,61018.0,61017.0,0.082046]
[1728540853797,0.6008,61018.0,61017.0,0.082046]
[1728540854005,0.6328,61018.0,61017.0,0.082046]
[1728540854202,0.6655,61018.0,61017.0,0.082046]
[1728540854597,0.6655,61018.0,61016.0,0.00245828]
[1728540854911,0.6655,61018.0,61013.0,0.093452]
[1728540854912,0.082046,61017.0,61013.0,0.093452]
[1728540855206,0.5008,61014.0,61013.0,0.082052]
[1728540855401,0.6108,61014.0,61013.0,0.082052]
[1728540856209,0.6108,61014.0,61013.0,0.087052]
[1728540856911,0.6108,61014.0,61013.0,0.094052]
[1728540857101,0.9716,61014.0,61013.0,0.094052]
[1728540857298,1.05365,61014.0,61013.0,0.094052]
[1728540858107,1.54533,61014.0,61013.0,0.094052]
[1728540858311,1.54533,61014.0,61013.0,0.089052]
[1728540858513,1.54533,61014.0,61013.0,0.097052]
[1728540858712,1.54533,61014.0,61010.0,0.0114]
[1728540858713,0.082052,61013.0,61010.0,0.0114]
[1728540858907,0.082052,61013.0,61008.0,0.082058]
[1728540858908,0.14,61011.0,61008.0,0.082058]
[1728540859114,0.3608,61009.0,61008.0,0.082059]
[1728540859414,0.3608,61009.0,61008.0,0.081899]
[1728540859415,0.4708,61009.0,61008.0,0.081899]
[1728540860200,0.4808,61009.0,61008.0,0.081899]
[1728540860808,0.4758,61009.0,61008.0,0.081899]
[1728540862608,0.4778,61009.0,61008.0,0.081899]
[1728540863512,0.4758,61009.0,61008.0,0.081899]
[1728540863905,0.4738,61009.0,61008.0,0.081899]
[1728540866713,0.4738,61009.0,61008.0,0.221899]
[1728540867607,0.4718,61009.0,61008.0,0.221899]
[1728540869124,0.4718,61009.0,61008.0,0.541899]
[1728540869315,0.4708,61009.0,61008.0,0.542899]
[1728540869911,0.11,61009.0,61008.0,0.542899]
[1728540870113,0.4708,61009.0,61008.0,0.543899]
[1728540876714,0.11,61009.0,61008.0,0.543899]
[1728540876919,0.11,61009.0,61008.0,0.5927859]
[1728540877619,0.11,61009.0,61008.0,0.543899]
[1728540878628,0.11,61009.0,61008.0,0.60904361]
[1728540878829,0.11,61009.0,61008.0,0.543899]
[1728540880332,0.11,61009.0,61008.0,0.62532977]
[1728540880935,0.3608,61012.0,61008.0,0.62532977]
[1728540881130,0.4808,61012.0,61011.0,0.222054]
[1728540882120,0.4808,61012.0,61011.0,0.33528477]
[1728540882328,0.4828,61012.0,61011.0,0.33528477]
[1728540882522,0.4848,61012.0,61011.0,0.253854]
[1728540882731,0.004,61012.0,61011.0,0.70407894]
[1728540882935,0.004,61012.0,61011.0,0.72972867]
[1728540883127,0.002,61012.0,61011.0,0.80179586]
[1728540883328,0.004,61012.0,61011.0,0.70407894]
[1728540884027,0.004,61012.0,61011.0,0.80179586]
[1728540884233,0.004,61012.0,61011.0,0.70407894]
[1728540884728,0.004,61012.0,61011.0,1.79579894]
[1728540884930,0.3608,61019.0,61018.0,0.082045]
[1728540885128,0.3608,61019.0,61018.0,0.222045]
[1728540885129,0.38100693,61019.0,61018.0,0.222045]
[1728540885635,0.3608,61019.0,61018.0,0.222045]
[1728540886138,0.3708,61019.0,61018.0,0.223045]
[1728540886435,0.3808,61019.0,61018.0,0.224045]
[1728540888929,0.4908,61019.0,61018.0,0.224045]
[1728540889735,0.4908,61019.0,61018.0,0.28927943]
[1728540889938,0.3808,61019.0,61018.0,0.28927943]
[1728540892643,0.02,61019.0,61018.0,0.28927943]
[1728540892843,0.02,61019.0,61018.0,0.224045]
[1728540893037,0.02,61019.0,61018.0,0.28927572]
[1728540893548,0.02,61019.0,61018.0,0.224045]
[1728540893742,0.02,61019.0,61018.0,1.315685]
[1728540893940,0.00245911,61024.0,61023.0,0.082038]
[1728540894139,0.00245911,61024.0,61023.0,0.28725401]
[1728540894847,0.12245911,61024.0,61023.0,0.28725401]
[1728540895342,0.12545911,61024.0,61023.0,0.28925401]
[1728540896736,0.12545911,61024.0,61023.0,0.224038]
[1728540897441,0.00545911,61024.0,61023.0,0.224038]
[1728540898137,0.003,61024.0,61023.0,0.224038]
[1728540898336,0.001,61024.0,61023.0,1.313638]
[1728540898639,0.001,61024.0,61023.0,1.33928174]
[1728540899233,0.001,61024.0,61023.0,1.65928174]
[1728540900750,0.001,61024.0,61023.0,1.633638]
[1728540902140,0.001,61024.0,61023.0,0.542038]
[1728540904444,0.101,61024.0,61023.0,0.542038]
[1728540905847,0.101,61024.0,61023.0,0.60725153]
[1728540906144,0.101,61024.0,61023.0,0.542038]
[1728540906547,0.0038,61033.0,61032.0,0.082026]
[1728540906748,0.3608,61038.0,61037.0,0.08202]
[1728540907049,0.48094697,61038.0,61037.0,0.22202]
[1728540907554,0.48094697,61038.0,61037.0,0.27090398]
[1728540908043,0.4608,61038.0,61037.0,0.22202]
[1728540908236,0.4628,61038.0,61037.0,0.22202]
[1728540908438,0.4628,61038.0,61037.0,0.29202]
[1728540908842,0.4608,61038.0,61037.0,0.29402]
[1728540910648,0.1,61038.0,61037.0,0.29402]
[1728540911251,0.1,61038.0,61037.0,0.08402]
[1728540911456,0.1,61038.0,61037.0,0.29402]
[1728540916946,0.1,61038.0,61037.0,0.08402]
[1728540917141,0.1,61038.0,61037.0,0.13288848]
[1728540917747,0.4608,61038.0,61037.0,0.13288848]
[1728540918550,0.4608,61038.0,61037.0,0.08402]
[1728540921155,0.4608,61038.0,61037.0,0.13288848]
[1728540922048,0.4608,61038.0,61037.0,0.08402]
[1728540922254,0.4608,61038.0,61037.0,0.14921301]
[1728540923147,0.4608,61038.0,61037.0,0.08402]
[1728540925055,0.1,61038.0,61037.0,0.08402]
[1728540928458,0.1,61038.0,61037.0,0.22402]
[1728540934259,0.1,61038.0,61037.0,0.30552353]
[1728540935068,0.1,61038.0,61037.0,0.31325635]
[1728540941563,0.1,61038.0,61037.0,0.31332369]
[1728540942073,0.1,61038.0,61037.0,0.3950179]
[1728540942572,0.1,61038.0,61037.0,0.31332369]
[1728540945969,0.1,61038.0,61037.0,0.39501738]
[1728540946169,0.1,61038.0,61037.0,0.39500552]
[1728540946569,0.1,61038.0,61037.0,0.30571369]
[1728540948975,0.1,61038.0,61037.0,0.31333128]
[1728540951183,0.1,61038.0,61037.0,0.4110482]
[1728540954178,0.1,61038.0,61037.0,0.31333128]
[1728540959075,0.1,61038.0,61037.0,0.39507208]
[1728540960488,0.1,61038.0,61037.0,0.39516244]
[1728540963969,0.1,61038.0,61037.0,0.31342164]
[1728540968586,0.1,61038.0,61037.0,0.31348699]
[1728540968976,0.1,61038.0,61037.0,0.41120391]
[1728540969173,0.1,61038.0,61037.0,0.31348699]
[1728540969380,0.1,61038.0,61037.0,0.63348699]
[1728540972894,0.1,61038.0,61037.0,0.31348699]
[1728540973096,0.1,61038.0,61037.0,0.3134478]
[1728540976391,0.1,61038.0,61037.0,0.78074268]
[1728540977487,0.1,61038.0,61037.0,0.6742478]
[1728540980593,0.00245763,61051.0,61046.0,0.082007]
[1728540980799,0.48058059,61047.0,61046.0,0.082007]
[1728540981891,0.48058059,61047.0,61046.0,0.083007]
[1728540982595,0.48258059,61047.0,61046.0,0.084007]
[1728540982987,0.48258059,61047.0,61046.0,0.16567667]
[1728540983595,0.48258059,61047.0,61046.0,0.084007]
[1728540984200,0.48258059,61047.0,61046.0,0.254769]
[1728540984500,0.48258059,61047.0,61046.0,0.084007]
[1728540984702,0.48258059,61047.0,61046.0,0.16567667]
[1728540985595,0.48258059,61047.0,61046.0,0.084007]
[1728540987204,0.48258059,61047.0,61046.0,0.16567667]
[1728540987602,0.48258059,61047.0,61046.0,0.25473816]
[1728540988495,0.48258059,61047.0,61046.0,0.16567667]
[1728540989496,0.12178059,61047.0,61046.0,0.16567667]
[1728540990706,0.12178059,61047.0,61046.0,0.084007]
[1728540992205,0.12178059,61047.0,61046.0,0.25473354]
[1728540992796,0.12178059,61047.0,61046.0,0.17306387]
[1728540993002,0.102,61047.0,61046.0,0.17306387]
[1728540994202,0.102,61047.0,61046.0,0.084007]
[1728540994400,0.002,61047.0,61046.0,0.084007]
[1728540994811,0.002,61047.0,61046.0,0.25455247]
[1728540995702,0.002,61047.0,61046.0,0.224007]
[1728540999508,0.3628,61047.0,61046.0,0.224007]
[1728541003311,0.3628,61047.0,61046.0,0.30556003]
[1728541004604,0.3628,61047.0,61046.0,0.39467611]
[1728541005305,0.3628,61047.0,61046.0,0.25467611]
[1728541005700,0.3628,61047.0,61046.0,0.39467611]
[1728541006612,0.3628,61047.0,61046.0,0.31312308]
[1728541008000,0.3628,61047.0,61046.0,0.31311525]
[1728541010914,0.002,61047.0,61046.0,0.31311525]
[1728541011112,0.3628,61047.0,61046.0,0.31313775]
[1728541012917,0.3628,61047.0,61046.0,0.41114135]
[1728541013212,0.3628,61047.0,61046.0,0.31313775]
[1728541015713,0.3628,61047.0,61046.0,0.41093165]
[1728541016108,0.3628,61047.0,61046.0,0.31298834]
[1728541016508,0.3628,61047.0,61046.0,0.41091872]
[1728541016708,0.3628,61047.0,61046.0,0.33862241]
[1728541019315,0.002,61047.0,61046.0,0.33862241]
[1728541020419,0.002,61047.0,61046.0,0.3385422]
[1728541022312,0.002,61047.0,61046.0,0.43643762]
[1728541022519,0.002,61047.0,61046.0,0.3385422]
[1728541022720,0.002,61047.0,61046.0,0.43643623]
[1728541023221,0.002,61047.0,61046.0,0.43643609]
[1728541023913,0.002,61047.0,61046.0,0.4364289]
[1728541024311,0.002,61047.0,61046.0,0.33853487]
[1728541030029,0.002,61047.0,61046.0,0.33753487]
[1728541030333,0.0038,61056.0,61046.0,0.33753487]
[1728541030334,0.0038,61056.0,61046.0,1.34796787]
[1728541030620,0.3608,61067.0,61055.0,0.5008]
[1728541030621,0.0076,61065.0,61055.0,0.5008]
[1728541030815,0.0331,61070.0,61068.0,0.081978]
[1728541030816,1.8856,61069.0,61068.0,0.081978]
[1728541031016,1.92476,61069.0,61068.0,0.62348775]
[1728541031327,1.56476,61069.0,61068.0,0.71267054]
[1728541031524,1.56476,61069.0,61068.0,0.65689244]
[1728541031728,1.56476,61069.0,61068.0,0.75472172]
[1728541032224,1.56476,61069.0,61068.0,0.65689244]
[1728541032418,1.56476,61069.0,61068.0,0.65789244]
[1728541033018,1.56476,61069.0,61068.0,0.65689118]
[1728541033222,1.56476,61069.0,61068.0,0.64884338]
[1728541034327,1.56476,61069.0,61068.0,0.60859927]
[1728541036020,1.56476,61069.0,61068.0,0.62832299]
[1728541036724,1.56476,61069.0,61068.0,0.69322755]
[1728541036925,1.56476,61069.0,61068.0,0.62832299]
[1728541037127,1.56476,61069.0,61068.0,0.69322755]
[1728541037430,1.56476,61069.0,61068.0,0.56170172]
[1728541038227,1.56476,61069.0,61068.0,0.42170172]
[1728541038432,1.59516,61069.0,61068.0,0.56170172]
[1728541039633,1.59516,61069.0,61068.0,0.61036403]
[1728541039831,1.59516,61069.0,61068.0,0.56170172]
[1728541040628,1.59516,61069.0,61068.0,0.61036079]
[1728541041427,1.70516,61069.0,61068.0,0.61036079]
[1728541043225,1.70516,61069.0,61068.0,0.56170172]
[1728541043537,1.70516,61069.0,61068.0,0.62832558]
[1728541043925,1.553106,61069.0,61068.0,0.99723124]
[1728541044126,0.02017726,61069.0,61068.0,2.17711435]
[1728541044429,0.02009141,61092.0,61083.0,0.081958]
[1728541044630,0.3608,61095.0,61089.0,0.08195]
[1728541044833,0.3608,61095.0,61089.0,0.22195]
[1728541045729,0.3608,61095.0,61089.0,0.22295]
[1728541046434,0.3608,61095.0,61089.0,0.61295]
[1728541046938,0.3608,61095.0,61089.0,0.63307722]
[1728541047233,0.3608,61095.0,61094.0,0.081943]
[1728541047437,0.3608,61095.0,61094.0,0.291943]
[1728541048642,0.3608,61095.0,61094.0,0.292943]
[1728541048827,0.081916,61115.0,61094.0,0.5718]
[1728541049029,0.12,61108.0,61107.0,0.291925]
[1728541049436,0.12,61108.0,61107.0,0.081925]
[1728541049629,0.12,61108.0,61107.0,0.062225]
[1728541049830,0.12,61108.0,61107.0,0.272225]
[1728541050340,0.57164,61116.0,61107.0,0.272225]
[1728541050341,0.3608,61110.0,61107.0,0.252525]
[1728541050538,0.4608,61110.0,61107.0,0.252525]
[1728541050949,0.542722,61110.0,61105.0,0.081928]
[1728541051438,0.4608,61110.0,61106.0,0.081926]
[1728541051643,0.4608,61110.0,61107.0,0.082925]
[1728541052036,0.4608,61110.0,61107.0,0.064225]
[1728541052234,0.4608,61110.0,61107.0,0.044525]
[1728541052441,0.21,61108.0,61107.0,0.001]
[1728541052738,0.21,61108.0,61097.0,0.0038]
[1728541052739,0.081926,61107.0,61106.0,0.001]
[1728541052940,0.081926,61107.0,61103.0,0.081931]
[1728541052941,0.191926,61107.0,61103.0,0.080931]
[1728541053239,0.3608,61104.0,61103.0,0.080931]
[1728541053834,0.3608,61104.0,61094.0,0.36705433]
[1728541054034,0.21,61099.0,61094.0,0.36325433]
[1728541054239,0.11,61099.0,61098.0,0.081937]
[1728541057435,0.111,61099.0,61098.0,0.081937]
[1728541058144,0.11,61099.0,61098.0,0.081937]
[1728541058547,0.111,61099.0,61098.0,0.081937]
[1728541059045,0.11,61099.0,61098.0,0.081937]
[1728541063545,0.11,61099.0,61096.0,0.081933]
[1728541063855,0.112,61099.0,61094.0,0.00245433]
[1728541064056,0.112,61099.0,61097.0,0.08193]
[1728541064553,0.11,61099.0,61097.0,0.08193]
[1728541064947,0.11,61099.0,61098.0,0.08193]
[1728541071156,0.32,61099.0,61098.0,0.08193]
[1728541073258,0.32,61099.0,61098.0,0.1305372]
[1728541074249,0.32,61099.0,61098.0,0.08193]
[1728541075253,0.11,61099.0,61098.0,0.08193]
[1728541076465,0.25,61099.0,61098.0,0.08193]
[1728541077164,0.25,61099.0,61097.0,0.06481435]
[1728541077367,0.25,61099.0,61097.0,0.04880334]
[1728541077368,0.491,61098.0,61097.0,0.04880334]
[1728541077670,0.601,61098.0,61096.0,0.04880334]
[1728541077860,0.14,61097.0,61095.0,0.04880334]
[1728541078063,0.582732,61096.0,61095.0,0.04880334]
[1728541078257,0.692732,61096.0,61094.0,0.04880334]
[1728541078457,0.21,61095.0,61094.0,0.13073834]
[1728541078658,0.33,61095.0,61094.0,0.13073834]
[1728541079167,0.444833,61095.0,61094.0,0.13073834]
[1728541079661,0.446833,61095.0,61094.0,0.13073834]
[1728541081170,0.448833,61095.0,61094.0,0.13073834]
[1728541081370,0.448833,61095.0,61094.0,0.081935]
[1728541081563,0.448833,61095.0,61094.0,0.13075519]
[1728541082271,0.448833,61095.0,61094.0,0.081935]
[1728541082466,0.448833,61095.0,61094.0,0.04882207]
[1728541082668,0.448833,61095.0,61091.0,0.06481435]
[1728541082669,0.081939,61091.0,61089.0,0.05262422]
[1728541082869,0.081939,61091.0,61087.0,0.06481435]
[1728541082870,0.081943,61088.0,61087.0,0.04882422]
[1728541083070,0.081943,61088.0,61084.0,0.06481435]
[1728541083071,0.081947,61085.0,61084.0,0.06481435]
[1728541083274,0.081947,61085.0,61082.0,0.0038]
[1728541083275,0.4808,61085.0,61080.0,0.06481435]
[1728541083475,0.081954,61080.0,61079.0,0.00108]
[1728541083676,0.562754,61080.0,61079.0,0.00108]
[1728541083870,0.594254,61080.0,61079.0,0.00108]
[1728541084265,0.5123,61080.0,61074.0,0.081961]
[1728541084561,0.21,61075.0,61072.0,0.3684]
[1728541084763,0.21,61075.0,61072.0,0.3608]
[1728541084764,0.081963,61073.0,61072.0,0.3608]
[1728541085069,0.191963,61073.0,61072.0,0.442764]
[1728541085770,0.191963,61073.0,61072.0,0.444764]
[1728541086574,0.191963,61073.0,61072.0,0.448764]
[1728541087273,0.11,61073.0,61072.0,0.448764]
[1728541087873,0.11,61073.0,61072.0,0.449764]
[1728541092975,0.11,61073.0,61072.0,0.088964]
[1728541093380,0.191963,61073.0,61072.0,0.007]
[1728541093883,0.21231074,61073.0,61072.0,0.007]
[1728541094679,0.21431074,61073.0,61070.0,0.00245558]
[1728541094881,0.3608,61071.0,61070.0,0.00245558]
[1728541095087,0.4708,61071.0,61070.0,0.00245558]
[1728541096280,0.4708,61071.0,61070.0,0.00345558]
[1728541096881,0.4708,61071.0,61070.0,0.001]
[1728541097590,0.4708,61071.0,61070.0,0.002]
[1728541098489,0.552766,61071.0,61070.0,0.002]
[1728541099583,0.552766,61071.0,61070.0,0.083967]
[1728541099891,0.4708,61071.0,61070.0,0.083967]
[1728541101284,0.11,61071.0,61070.0,0.083967]
[1728541105888,0.11,61071.0,61070.0,0.444767]
[1728541108797,0.11,61071.0,61070.0,0.476667]
[1728541109097,0.11,61071.0,61070.0,0.487667]
[1728541109295,0.11,61071.0,61070.0,0.55248135]
[1728541110297,0.11,61071.0,61070.0,0.56548135]
[1728541110696,0.11,61071.0,61070.0,0.55348135]
[1728541111003,0.11,61071.0,61070.0,0.56748135]
[1728541111398,0.191966,61071.0,61070.0,0.09281435]
[1728541111696,0.191966,61071.0,61070.0,0.028]
[1728541111890,0.401966,61071.0,61070.0,0.028]
[1728541112392,0.401966,61071.0,61070.0,0.348]
[1728541113087,0.401966,61071.0,61070.0,0.334]
[1728541113285,0.401966,61071.0,61070.0,0.348]
[1728541113787,0.401966,61071.0,61070.0,0.028]
[1728541115194,0.401966,61071.0,61070.0,0.0931593]
[1728541115393,0.401966,61071.0,61070.0,0.028]
[1728541116299,0.401966,61071.0,61070.0,0.0931593]
[1728541116598,0.401966,61071.0,61070.0,0.028]
[1728541117801,0.401966,61071.0,61070.0,0.0931593]
[1728541118508,0.401966,61071.0,61070.0,0.028]
[1728541118702,0.401966,61071.0,61065.0,0.0076]
[1728541118703,1.77204,61071.0,61065.0,0.0076]
[1728541118910,0.3608,61066.0,61061.0,0.0038]
[1728541119097,0.3608,61066.0,61060.0,0.08578]
[1728541119098,0.081979,61061.0,61060.0,0.08198]
[1728541119290,0.201979,61061.0,61060.0,0.08198]
[1728541120395,0.201979,61061.0,61060.0,0.09598]
[1728541121804,0.202979,61061.0,61060.0,0.10598]
[1728541122801,0.22307719,61061.0,61060.0,0.10598]
[1728541130007,0.22207719,61061.0,61060.0,0.09598]
[1728541130203,0.22207719,61061.0,61060.0,0.09998]
[1728541130931,0.22207719,61061.0,61060.0,0.08598]
[1728541131145,0.22207719,61061.0,61060.0,0.08998]
[1728541131528,0.22207719,61061.0,61060.0,0.08498]
[1728541131828,0.22207719,61061.0,61060.0,0.08898]
[1728541137308,0.14009819,61061.0,61060.0,0.08898]
[1728541137819,0.12,61061.0,61060.0,0.08898]
[1728541138315,0.12,61061.0,61060.0,0.12028]
[1728541139319,0.0701,61061.0,61060.0,0.12028]
[1728541139916,0.0076,61069.0,61066.0,0.081972]
[1728541140120,0.11,61069.0,61066.0,0.081972]
[1728541140309,0.11,61069.0,61064.0,0.3608]
[1728541140720,0.11,61069.0,61068.0,0.08197]
[1728541141215,0.12,61069.0,61068.0,0.08197]
[1728541143316,0.118,61069.0,61068.0,0.08197]
[1728541143721,0.008,61069.0,61068.0,0.08197]
[1728541143915,0.005,61069.0,61068.0,0.08197]
[1728541144216,0.007,61069.0,61068.0,0.08197]
[1728541144411,0.004,61069.0,61068.0,0.08197]
[1728541146809,0.21,61073.0,61065.0,0.08101794]
[1728541147004,0.391964,61073.0,61069.0,0.442768]
[1728541147206,0.081964,61072.0,61069.0,0.442768]
[1728541147422,0.181964,61072.0,61069.0,0.442768]
[1728541147616,0.21,61070.0,61069.0,0.442768]
[1728541147919,0.32,61070.0,61069.0,0.442768]
[1728541148314,0.11,61070.0,61069.0,0.442768]
[1728541148529,0.32,61070.0,61069.0,0.442768]
[1728541148717,0.11,61070.0,61069.0,0.442768]
[1728541149622,0.111,61070.0,61069.0,0.442768]
[1728541150120,0.112,61070.0,61069.0,0.442768]
[1728541152623,0.11,61070.0,61069.0,0.443768]
[1728541156526,0.11,61070.0,61069.0,0.583768]
[1728541163618,0.11,61070.0,61069.0,0.6093924]
[1728541163921,0.11,61070.0,61069.0,1.2093924]
[1728541164126,0.0076,61079.0,61078.0,0.081956]
[1728541164319,0.085741,61090.0,61079.0,0.081955]
[1728541164320,0.02008035,61085.0,61079.0,0.081955]
[1728541164624,0.26,61085.0,61084.0,0.081948]
[1728541164820,0.12,61085.0,61084.0,0.081948]
[1728541165020,0.26,61085.0,61084.0,0.081948]
[1728541166121,0.274,61085.0,61084.0,0.082948]
[1728541166722,0.288,61085.0,61084.0,0.083948]
[1728541167716,0.148,61085.0,61084.0,0.223948]
[1728541170320,0.148,61085.0,61084.0,0.083948]
[1728541175425,0.229947,61085.0,61084.0,0.002]
[1728541175730,0.148,61085.0,61084.0,0.002]
[1728541177223,0.148,61085.0,61084.0,0.083948]
[1728541177428,0.288,61085.0,61084.0,0.083948]
[1728541177633,0.288,61085.0,61084.0,0.002]
[1728541177835,0.148,61085.0,61084.0,0.002]
[1728541178033,0.288,61085.0,61084.0,0.002]
[1728541180532,0.288,61085.0,61084.0,0.083948]
[1728541185640,0.288,61085.0,61084.0,0.1489195]
[1728541185847,0.288,61085.0,61084.0,0.083948]
[1728541186237,0.288,61085.0,61084.0,0.1489195]